fUST/lending_fUST_20250821
["ID","MTS","AMOUNT","RATE_DAILY","PERIOD"]
[380418430,1755751849356,-430.96913382,0.00022191,3]
[380418431,1755751849367,-480.0,0.00022191,3]
[380418432,1755751849378,-654.02,0.00022191,3]
[380418433,1755751849389,-151.0,0.00022191,7]
[380418434,1755751849400,-480.0,0.00022191,3]
[380418435,1755751849411,-480.0,0.00022191,3]
[380418436,1755751849422,-480.0,0.00022191,3]
[380418437,1755751849433,-511.9,0.00022191,3]
[380418438,1755751849444,-785.42,0.00022191,3]
[380418439,1755751849455,-151.0,0.00022191,7]
[380418440,1755751849466,-1494.01,0.00022191,3]
[380418441,1755751849477,-518.97,0.00022191,3]
[380418442,1755751849487,-480.0,0.00022191,3]
[380418443,1755751849498,-480.0,0.00022191,3]
[380418444,1755751849509,-480.0,0.00022191,3]
[380418445,1755751849519,-2423.76,0.00022191,3]
[380418446,1755751849530,-715.44,0.00022191,3]
[380418447,1755751849541,-480.0,0.00022191,3]
[380418448,1755751849552,-604.93,0.00022191,3]
[380418449,1755751849563,-151.0,0.00022191,7]
[380418450,1755751849574,-480.0,0.00022191,3]
[380418451,1755751849585,-1328.84,0.00022191,3]
[380418452,1755751849595,-496.5,0.00022191,3]
[380418453,1755751849606,-1285.14,0.00022191,3]
[380418454,1755751849616,-480.0,0.00022191,3]
[380418455,1755751849627,-480.0,0.00022191,3]
[380418456,1755751849638,-480.0,0.00022191,2]
[380418457,1755751849648,-795.89,0.00022191,3]
[380418458,1755751849659,-151.0,0.00022191,7]
[380418459,1755751849670,-480.0,0.00022191,3]
[380418460,1755751849685,-480.0,0.00022191,3]
[380418461,1755751849695,-151.0,0.00022191,7]
[380418462,1755751849706,-480.0,0.00022191,3]
[380418463,1755751849716,-151.0,0.00022191,7]
[380418464,1755751849727,-565.22,0.00022191,3]
[380418465,1755751849738,-480.0,0.00022191,3]
[380418466,1755751849749,-480.0,0.00022191,3]
[380418467,1755751849760,-480.0,0.00022191,3]
[380418468,1755751849770,-151.0,0.00022191,7]
[380418469,1755751849780,-480.0,0.00022191,3]
[380418470,1755751849790,-1007.67,0.00022191,3]
[380418471,1755751849802,-480.0,0.00022191,3]
[380418472,1755751849812,-169.014893,0.00022191,7]
[380418473,1755751849822,-480.0,0.00022191,3]
[380418474,1755751849832,-480.0,0.00022191,3]
[380418475,1755751849842,-169.014893,0.00022191,7]
[380418476,1755751849852,-6449.66,0.00022191,3]
[380418477,1755751849863,-169.014893,0.00022191,7]
[380418478,1755751849873,-480.0,0.00022191,3]
[380418479,1755751849884,-480.0,0.00022191,3]
[380418480,1755751849893,-169.014893,0.00022191,7]
[380418481,1755751849904,-426.072767,0.00022191,7]
[380418482,1755751849914,-151.0,0.00022191,7]
[380418483,1755751849924,-426.072767,0.00022191,7]
[380418484,1755751849934,-422.29524756,0.00022191,3]
[380418485,1755751849944,-151.0,0.00022191,7]
[380418486,1755751849954,-426.072767,0.00022191,7]
[380418487,1755751849965,-1000.0,0.00022191,3]
[380418488,1755751849975,-848.39,0.00022191,3]
[380418489,1755751849985,-513.41,0.00022191,3]
[380418490,1755751849996,-426.072767,0.00022191,7]
[380418491,1755751850006,-2253.89,0.00022191,3]
[380418492,1755751850016,-480.0,0.00022191,3]
[380418493,1755751850026,-517.86678539,0.00022191,3]
[380418494,1755751850037,-480.0,0.00022191,3]
[380418495,1755751850047,-491.46932585,0.00022191,3]
[380418496,1755751850057,-480.0,0.00022191,3]
[380418497,1755751850067,-480.0,0.00022191,3]
[380418498,1755751850077,-480.0,0.00022191,3]
[380418499,1755751850086,-2775.55,0.00022191,3]
[380418500,1755751850096,-480.0,0.00022191,3]
[380418501,1755751850343,-524.45,0.00022191,3]
[380418502,1755751850371,-2325.53,0.00022191,3]
[380418503,1755751850384,-1158.97,0.00022191,3]
[380418504,1755751850393,-384.04175063,0.00022191,3]
[380418505,1755751850402,-480.0,0.00022191,3]
[380418506,1755751850411,-500.48,0.00022191,3]
[380418507,1755751850420,-2141.31,0.00022191,3]
[380418508,1755751850429,-480.0,0.00022191,3]
[380418509,1755751850438,-480.0,0.00022191,3]
[380418510,1755751850447,-480.0,0.00022191,3]
[380418511,1755751850456,-4299.44,0.00022191,3]
[380418512,1755751850466,-480.0,0.00022191,3]
[380418513,1755751850475,-480.0,0.00022191,3]
[380418514,1755751850484,-617.13,0.00022191,3]
[380418515,1755751850493,-580.0,0.00022191,3]
[380418516,1755751850501,-2343.66,0.00022191,3]
[380418517,1755751850511,-480.0,0.00022191,3]
[380418518,1755751850520,-480.0,0.00022191,3]
[380418519,1755751850529,-480.0,0.00022191,3]
[380418520,1755751850538,-480.0,0.00022191,3]
[380418521,1755751850547,-326.59041464,0.00022191,3]
[380418522,1755751850556,-480.0,0.00022191,3]
[380418523,1755751850565,-480.0,0.00022191,3]
[380418524,1755751850575,-480.0,0.00022191,3]
[380418525,1755751850584,-151.0,0.00022191,7]
[380418526,1755751850592,-1595.91,0.00022191,3]
[380418527,1755751850601,-151.0,0.00022191,7]
[380418528,1755751850610,-817.32,0.00022191,3]
[380418529,1755751850619,-151.0,0.00022191,7]
[380418530,1755751850628,-811.07,0.00022191,3]
[380418531,1755751850637,-151.0,0.00022191,7]
[380418532,1755751850646,-480.0,0.00022191,3]
[380418533,1755751850655,-480.0,0.00022191,3]
[380418534,1755751850664,-679.77,0.00022191,3]
[380418535,1755751850674,-480.0,0.00022191,3]
[380418536,1755751850684,-480.0,0.00022191,2]
[380418537,1755751850693,-480.0,0.00022191,3]
[380418538,1755751850703,-480.0,0.00022191,3]
[380418539,1755751850712,-151.0,0.000222,9]
[380418540,1755751850722,-151.0,0.000222,5]
[380418541,1755751850733,-151.0,0.000222,8]
[380418542,1755751850741,-151.0,0.00022212,7]
[380418543,1755751850751,-151.0,0.00022212,7]
[380418544,1755751850760,-151.0,0.00022212,7]
[380418545,1755751850769,-151.0,0.00022212,7]
[380418546,1755751850778,-151.675129,0.00022212,7]
[380418547,1755751850788,-151.0,0.00022212,7]
[380418548,1755751850798,-151.0,0.00022212,7]
[380418549,1755751850807,-208.891138,0.00022212,7]
[380418550,1755751850816,-152.006357,0.00022212,7]
[380418551,1755751850826,-480.0,0.00022213,3]
[380418552,1755751850835,-480.0,0.00022213,3]
[380418553,1755751850844,-480.0,0.00022213,3]
[380418554,1755751850854,-480.0,0.00022213,3]
[380418555,1755751850866,-218.06075176,0.00022213,3]
[380418556,1755751850876,-480.0,0.00022213,3]
[380418557,1755751850886,-480.0,0.00022213,3]
[380418558,1755751850896,-480.0,0.00022213,3]
[380418559,1755751850906,-480.0,0.00022213,3]
[380418560,1755751850915,-480.0,0.00022213,3]
[380418561,1755751850925,-480.0,0.00022213,3]
[380418562,1755751850934,-480.0,0.00022213,3]
[380418563,1755751850943,-480.0,0.00022213,3]
[380418564,1755751850952,-480.0,0.00022213,3]
[380418565,1755751850960,-480.0,0.00022213,3]
[380418566,1755751850970,-480.0,0.00022213,3]
[380418567,1755751850979,-480.0,0.00022213,3]
[380418568,1755751850988,-559.00376998,0.00022213,3]
[380418569,1755751850997,-480.0,0.00022213,3]
[380418570,1755751851007,-480.0,0.00022213,3]
[380418571,1755751851016,-480.0,0.00022213,3]
[380418572,1755751851025,-480.0,0.00022213,3]
[380418573,1755751851034,-612.36,0.00022213,3]
[380418574,1755751851043,-480.0,0.00022213,3]
[380418575,1755751851053,-463.02109313,0.00022213,3]
[380418576,1755751851062,-480.0,0.00022213,3]
[380418577,1755751851071,-480.0,0.00022213,3]
[380418578,1755751851081,-480.0,0.00022213,3]
[380418579,1755751851090,-1356.09,0.00022213,3]
[380418580,1755751851099,-540.754707,0.00022213,3]
[380418581,1755751851108,-480.0,0.00022213,3]
[380418582,1755751851118,-480.0,0.00022213,3]
[380418583,1755751851127,-480.0,0.00022213,3]
[380418584,1755751851136,-480.0,0.00022213,3]
[380418585,1755751851146,-1308.43,0.00022213,3]
[380418586,1755751851155,-151.0,0.00022213,7]
[380418587,1755751851164,-480.0,0.00022213,3]
[380418588,1755751851173,-480.0,0.00022213,3]
[380418589,1755751851183,-580.14,0.00022213,3]
[380418590,1755751851192,-480.0,0.00022213,3]
[380418591,1755751851201,-480.0,0.00022213,3]
[380418592,1755751851211,-480.0,0.00022213,3]
[380418593,1755751851220,-480.0,0.00022213,3]
[380418594,1755751851229,-480.0,0.00022213,3]
[380418595,1755751851239,-480.0,0.00022213,3]
[380418596,1755751851248,-470.53140138,0.00022213,3]
[380418597,1755751851257,-339.04926687,0.00022213,3]
[380418598,1755751851267,-480.0,0.00022213,3]
[380418599,1755751851277,-480.0,0.00022213,3]
[380418600,1755751851286,-480.0,0.00022213,3]
[380418601,1755751851295,-480.0,0.00022213,3]
[380418602,1755751851304,-895.94,0.00022213,3]
[380418603,1755751851313,-480.0,0.00022213,3]
[380418604,1755751851323,-480.0,0.00022213,3]
[380418605,1755751851332,-450.570013,0.00022213,3]
[380418606,1755751851341,-382.45515287,0.00022213,3]
[380418607,1755751851351,-480.0,0.00022213,3]
[380418608,1755751851360,-480.0,0.00022213,3]
[380418609,1755751851369,-480.0,0.00022213,3]
[380418610,1755751851379,-480.0,0.00022213,3]
[380418611,1755751851390,-480.0,0.00022213,3]
[380418612,1755751851400,-480.0,0.00022213,3]
[380418613,1755751851411,-480.0,0.00022213,3]
[380418614,1755751851421,-480.0,0.00022213,3]
[380418615,1755751851430,-480.0,0.00022213,3]
[380418616,1755751851440,-480.0,0.00022213,3]
[380418617,1755751851449,-480.0,0.00022213,3]
[380418618,1755751851459,-480.0,0.00022213,3]
[380418619,1755751851469,-383.22195193,0.00022213,3]
[380418620,1755751851478,-480.0,0.00022213,3]
[380418621,1755751851488,-480.0,0.00022213,3]
[380418622,1755751851498,-455.70870407,0.00022213,3]
[380418623,1755751851508,-480.0,0.00022213,3]
[380418624,1755751851518,-480.0,0.00022213,3]
[380418625,1755751851527,-480.0,0.00022213,3]
[380418626,1755751851537,-480.0,0.00022213,3]
[380418627,1755751851546,-480.0,0.00022213,3]
[380418628,1755751851555,-480.0,0.00022213,3]
[380418629,1755751851564,-480.0,0.00022213,3]
[380418630,1755751851573,-480.0,0.00022213,3]
[380418631,1755751851583,-480.0,0.00022213,3]
[380418632,1755751851592,-480.0,0.00022213,3]
[380418633,1755751851601,-480.0,0.00022213,3]
[380418634,1755751851610,-480.0,0.00022213,3]
[380418635,1755751851619,-480.0,0.00022213,3]
[380418636,1755751851628,-480.0,0.00022213,3]
[380418637,1755751851637,-480.0,0.00022213,3]
[380418638,1755751851645,-461.22198997,0.00022213,3]
[380418639,1755751851654,-480.0,0.00022213,3]
[380418640,1755751851663,-480.0,0.00022213,3]
[380418641,1755751851673,-480.0,0.00022213,3]
[380418642,1755751851684,-480.0,0.00022213,3]
[380418643,1755751851693,-507.30040105,0.00022213,3]
[380418644,1755751851702,-480.0,0.00022213,3]
[380418645,1755751851711,-480.0,0.00022213,3]
[380418646,1755751851721,-480.0,0.00022213,3]
[380418647,1755751851730,-495.92,0.00022213,3]
[380418648,1755751851738,-480.0,0.00022213,3]
[380418649,1755751851747,-500.0,0.00022213,3]
[380418650,1755751851756,-480.0,0.00022213,3]
[380418651,1755751851765,-480.0,0.00022213,3]
[380418652,1755751851775,-480.0,0.00022213,3]
[380418653,1755751851784,-480.0,0.00022213,3]
[380418654,1755751851793,-480.0,0.00022213,3]
[380418655,1755751851801,-480.0,0.00022213,3]
[380418656,1755751851810,-480.0,0.00022213,3]
[380418657,1755751851819,-480.0,0.00022213,3]
[380418658,1755751851828,-480.0,0.00022213,3]
[380418659,1755751851837,-480.0,0.00022213,3]
[380418660,1755751851846,-480.0,0.00022213,3]
[380418661,1755751851855,-480.0,0.00022213,3]
[380418662,1755751851864,-480.0,0.00022213,3]
[380418663,1755751851873,-480.0,0.00022213,3]
[380418664,1755751851882,-480.0,0.00022213,3]
[380418665,1755751851891,-480.0,0.00022213,3]
[380418666,1755751851899,-480.0,0.00022213,3]
[380418667,1755751851908,-480.0,0.00022213,3]
[380418668,1755751851917,-480.0,0.00022213,3]
[380418669,1755751851926,-480.0,0.00022213,3]
[380418670,1755751851936,-480.0,0.00022213,3]
[380418671,1755751851944,-520.04,0.00022213,3]
[380418672,1755751851953,-480.0,0.00022213,3]
[380418673,1755751851963,-744.23,0.00022213,3]
[380418674,1755751851972,-480.0,0.00022213,3]
[380418675,1755751851980,-584.73,0.00022213,3]
[380418676,1755751851989,-151.0,0.00022213,7]
[380418677,1755751851998,-480.0,0.00022213,3]
[380418678,1755751852007,-480.0,0.00022213,3]
[380418679,1755751852016,-151.0,0.00022213,7]
[380418680,1755751852026,-151.0,0.00022213,7]
[380418681,1755751852035,-480.0,0.00022213,3]
[380418682,1755751852044,-480.0,0.00022213,3]
[380418683,1755751852053,-480.0,0.00022213,3]
[380418684,1755751852062,-151.0,0.00022213,7]
[380418685,1755751852071,-480.0,0.00022213,3]
[380418686,1755751852079,-151.0,0.00022213,7]
[380418687,1755751852088,-480.0,0.00022213,3]
[380418688,1755751852097,-151.0,0.00022213,7]
[380418689,1755751852106,-151.0,0.00022213,7]
[380418690,1755751852115,-151.0,0.00022213,7]
[380418691,1755751852125,-480.0,0.00022213,3]
[380418692,1755751852134,-480.0,0.00022213,3]
[380418693,1755751852143,-480.0,0.00022213,3]
[380418694,1755751852152,-480.0,0.00022213,3]
[380418695,1755751852161,-151.0,0.00022213,7]
[380418696,1755751852170,-151.0,0.00022213,7]
[380418697,1755751852179,-480.0,0.00022213,3]
[380418698,1755751852188,-151.0,0.00022213,7]
[380418699,1755751852197,-151.0,0.00022213,7]
[380418700,1755751852206,-151.0,0.00022213,7]
[380418701,1755751852215,-151.0,0.00022213,7]
[380418702,1755751852224,-169.011673,0.00022213,7]
[380418703,1755751852233,-289.844918,0.00022213,7]
[380418704,1755751852242,-480.0,0.00022213,3]
[380418705,1755751852251,-289.844918,0.00022213,7]
[380418706,1755751852259,-289.844918,0.00022213,7]
[380418707,1755751852268,-151.0,0.00022213,7]
[380418708,1755751852278,-289.844918,0.00022213,7]
[380418709,1755751852286,-480.0,0.00022213,3]
[380418710,1755751852295,-480.0,0.00022213,3]
[380418711,1755751852304,-462.48766079,0.00022213,3]
[380418712,1755751852313,-151.0,0.00022213,7]
[380418713,1755751852322,-410.7392009,0.00022213,3]
[380418714,1755751852331,-151.0,0.00022213,7]
[380418715,1755751852340,-480.0,0.00022213,3]
[380418716,1755751852349,-151.0,0.00022213,7]
[380418717,1755751852358,-151.0,0.00022213,7]
[380418718,1755751852367,-176.359972,0.00022213,7]
[380418719,1755751852376,-480.0,0.00022213,3]
[380418720,1755751852386,-480.0,0.00022213,3]
[380418721,1755751852395,-151.0,0.00022213,7]
[380418722,1755751852404,-480.0,0.00022213,3]
[380418723,1755751852415,-169.014893,0.00022213,7]
[380418724,1755751852424,-169.014893,0.00022213,7]
[380418725,1755751852433,-169.014893,0.00022213,7]
[380418726,1755751852443,-169.014893,0.00022213,7]
[380418727,1755751852452,-426.072767,0.00022213,7]
[380418728,1755751852461,-151.0,0.00022213,7]
[380418729,1755751852471,-426.072767,0.00022213,7]
[380418730,1755751852480,-151.0,0.00022213,7]
[380418731,1755751852490,-426.072767,0.00022213,7]
[380418732,1755751852499,-426.072767,0.00022213,7]
[380418733,1755751852508,-237.89305929,0.00022213,3]
[380418734,1755751852518,-713.76,0.00022213,3]
[380418735,1755751852527,-480.0,0.00022213,3]
[380418736,1755751852535,-480.0,0.00022213,3]
[380418737,1755751852545,-480.0,0.00022213,3]
[380418738,1755751852554,-480.0,0.00022213,3]
[380418739,1755751852563,-480.0,0.00022213,3]
[380418740,1755751852573,-500.99382765,0.00022213,3]
[380418741,1755751852582,-480.0,0.00022213,3]
[380418742,1755751852591,-480.0,0.00022214,3]
[380418743,1755751852600,-480.0,0.00022214,3]
[380418744,1755751852609,-620.94,0.00022214,3]
[380418745,1755751852618,-480.0,0.00022214,3]
[380418746,1755751852627,-480.0,0.00022214,3]
[380418747,1755751852636,-480.0,0.00022214,3]
[380418748,1755751852645,-480.0,0.00022214,3]
[380418749,1755751852654,-480.0,0.00022214,3]
[380418750,1755751852663,-480.0,0.00022214,3]
[380418751,1755751852672,-442.0526432,0.00022214,3]
[380418752,1755751852684,-480.0,0.00022214,3]
[380418753,1755751852693,-480.0,0.00022214,3]
[380418754,1755751852702,-480.0,0.00022214,3]
[380418755,1755751852711,-480.0,0.00022214,3]
[380418756,1755751852720,-657.71,0.00022214,3]
[380418757,1755751852729,-722.99,0.00022214,3]
[380418758,1755751852739,-480.0,0.00022214,3]
[380418759,1755751852747,-480.0,0.00022214,3]
[380418760,1755751852756,-480.0,0.00022214,3]
[380418761,1755751852766,-480.0,0.00022214,3]
[380418762,1755751852775,-480.0,0.00022214,3]
[380418763,1755751852784,-480.0,0.00022214,3]
[380418764,1755751852793,-151.0,0.00022214,7]
[380418765,1755751852802,-480.0,0.00022216,3]
[380418766,1755751852811,-480.0,0.00022216,3]
[380418767,1755751852820,-151.0,0.00022216,7]
[380418768,1755751852829,-151.0,0.00022216,7]
[380418769,1755751852839,-545.61287239,0.00022216,3]
[380418770,1755751852848,-480.0,0.00022216,3]
[380418771,1755751852857,-480.0,0.00022216,3]
[380418772,1755751852866,-261.52296666,0.00022216,3]
[380418773,1755751852876,-480.0,0.00022216,3]
[380418774,1755751852885,-480.0,0.00022216,3]
[380418775,1755751852895,-480.0,0.00022216,3]
[380418776,1755751852904,-480.0,0.00022216,3]
[380418777,1755751852913,-480.0,0.00022216,3]
[380418778,1755751852923,-480.0,0.00022216,3]
[380418779,1755751852932,-480.0,0.00022216,3]
[380418780,1755751852942,-480.0,0.00022216,3]
[380418781,1755751852952,-480.0,0.00022216,3]
[380418782,1755751852961,-154.555483,0.00022216,7]
[380418783,1755751852971,-151.0,0.00022216,7]
[380418784,1755751852979,-153.412941,0.00022216,7]
[380418785,1755751852988,-480.0,0.00022216,3]
[380418786,1755751852998,-480.0,0.00022216,3]
[380418787,1755751853007,-480.0,0.00022216,3]
[380418788,1755751853016,-151.0,0.00022216,7]
[380418789,1755751853026,-151.0,0.00022216,7]
[380418790,1755751853035,-151.0,0.00022216,7]
[380418791,1755751853045,-151.0,0.00022216,7]
[380418792,1755751853055,-480.0,0.00022216,3]
[380418793,1755751853064,-221.973423,0.00022216,7]
[380418794,1755751853073,-221.973423,0.00022216,7]
[380418795,1755751853083,-221.973423,0.00022216,7]
[380418796,1755751853092,-221.973423,0.00022216,7]
[380418797,1755751853101,-480.0,0.00022216,3]
[380418798,1755751853110,-480.0,0.00022216,3]
[380418799,1755751853120,-480.0,0.00022216,3]
[380418800,1755751853129,-159.707259,0.00022216,7]
[380418801,1755751853138,-151.0,0.00022216,7]
[380418802,1755751853147,-205.932385,0.00022216,7]
[380418803,1755751853156,-205.932385,0.00022216,7]
[380418804,1755751853166,-205.932385,0.00022216,7]
[380418805,1755751853176,-205.932385,0.00022216,7]
[380418806,1755751853187,-159.707259,0.00022216,7]
[380418807,1755751853198,-159.707259,0.00022216,7]
[380418808,1755751853207,-151.0,0.00022216,7]
[380418809,1755751853217,-159.707259,0.00022216,7]
[380418810,1755751853226,-160.0,0.00022218,7]
[380418811,1755751853237,-151.0,0.000223,9]
[380418812,1755751853247,-151.0,0.000223,9]
[380418813,1755751853256,-151.0,0.000223,7]
[380418814,1755751853265,-151.0,0.000223,7]
[380418815,1755751853275,-716.40028556,0.00022359,2]
[380418816,1755751853285,-172.6605949,0.00022365,2]
[380418817,1755751853294,-151.0,0.000224,7]
[380418818,1755751853304,-151.0,0.000224,10]
[380418819,1755751853314,-151.0,0.000224,10]
[380418820,1755751853324,-151.0,0.000224,8]
[380418821,1755751853333,-1900.0,0.00022409,2]
[380418822,1755751853342,-337.18063516,0.00022465,2]
[380418823,1755751853352,-152.14769542,0.00022465,2]
[380418824,1755751853361,-151.0,0.00022465,2]
[380418825,1755751853370,-198.91617106,0.00022465,2]
[380418826,1755751853380,-151.0,0.00022465,2]
[380418827,1755751853533,-192.82534076,0.00022465,2]
[380418828,1755751853551,-151.8076622,0.00022465,2]
[380418829,1755751853560,-151.0,0.00022465,2]
[380418830,1755751853570,-599.55849812,0.00022465,2]
[380418831,1755751853579,-500.0,0.00022465,2]
[380418832,1755751853589,-151.0,0.00022465,2]
[380418833,1755751853598,-223.0110494,0.00022465,2]
[380418834,1755751853608,-480.0,0.00022465,3]
[380418835,1755751853617,-480.0,0.00022465,3]
[380418836,1755751853626,-480.0,0.00022465,3]
[380418837,1755751853636,-271.92419519,0.00022465,3]
[380418838,1755751853645,-343.44075412,0.00022465,3]
[380418839,1755751853654,-347.8754355,0.00022465,3]
[380418840,1755751853663,-480.0,0.00022465,3]
[380418841,1755751853673,-212.47884763,0.00022465,3]
[380418842,1755751853687,-480.0,0.00022465,3]
[380418843,1755751853697,-363.83008373,0.00022465,3]
[380418844,1755751853706,-161.880697,0.00022465,7]
[380418845,1755751853715,-151.0,0.00022465,7]
[380418846,1755751853726,-320.1,0.00022465,3]
[380418847,1755751853735,-828.94,0.00022465,3]
[380418848,1755751853744,-826.34,0.00022465,3]
[380418849,1755751853753,-480.0,0.00022465,3]
[380418850,1755751853762,-480.0,0.00022465,3]
[380418851,1755751853771,-480.0,0.00022465,3]
[380418852,1755751853780,-672.12,0.00022465,3]
[380418853,1755751853790,-2336.59,0.00022465,3]
[380418854,1755751853799,-1164.56,0.00022465,3]
[380418855,1755751853807,-480.0,0.00022465,3]
[380418856,1755751853816,-480.0,0.00022465,3]
[380418857,1755751853825,-480.0,0.00022465,3]
[380418858,1755751853834,-480.0,0.00022465,3]
[380418859,1755751853843,-480.0,0.00022465,3]
[380418860,1755751853852,-546.25,0.00022465,3]
[380418861,1755751853861,-167.18164905,0.00022465,3]
[380418862,1755751853870,-480.0,0.00022465,3]
[380418863,1755751853879,-480.0,0.00022465,3]
[380418864,1755751853887,-489.78,0.00022465,3]
[380418865,1755751853896,-480.0,0.00022465,3]
[380418866,1755751853905,-480.0,0.00022465,3]
[380418867,1755751853914,-151.0,0.00022465,7]
[380418868,1755751853923,-480.0,0.00022465,3]
[380418869,1755751853933,-480.0,0.00022465,3]
[380418870,1755751853942,-707.17,0.00022465,3]
[380418871,1755751853951,-480.0,0.00022465,3]
[380418872,1755751853961,-480.0,0.00022465,3]
[380418873,1755751853971,-2144.78,0.00022465,3]
[380418874,1755751853980,-151.0,0.00022465,7]
[380418875,1755751853990,-1449.79,0.00022465,3]
[380418876,1755751853999,-480.0,0.00022465,2]
[380418877,1755751854009,-151.0,0.00022465,7]
[380418878,1755751854019,-480.0,0.00022465,3]
[380418879,1755751854028,-480.0,0.00022465,3]
[380418880,1755751854038,-151.0,0.00022465,7]
[380418881,1755751854047,-480.0,0.00022465,3]
[380418882,1755751854057,-967.17,0.00022465,3]
[380418883,1755751854067,-872.0,0.00022465,3]
[380418884,1755751854076,-156.248367,0.00022465,7]
[380418885,1755751854086,-915.64,0.00022465,3]
[380418886,1755751854095,-792.61,0.00022465,3]
[380418887,1755751854105,-480.0,0.00022465,3]
[380418888,1755751854115,-480.0,0.00022465,3]
[380418889,1755751854125,-480.0,0.00022465,3]
[380418890,1755751854135,-866.03,0.00022465,3]
[380418891,1755751854144,-659.98,0.00022465,3]
[380418892,1755751854154,-480.0,0.00022465,3]
[380418893,1755751854163,-480.0,0.00022465,3]
[380418894,1755751854174,-480.0,0.00022465,3]
[380418895,1755751854184,-221.973423,0.00022465,7]
[380418896,1755751854194,-221.973423,0.00022465,7]
[380418897,1755751854203,-221.973423,0.00022465,7]
[380418898,1755751854214,-221.973423,0.00022465,7]
[380418899,1755751854224,-310.42470566,0.00022465,3]
[380418900,1755751854234,-480.0,0.00022465,3]
[380418901,1755751854243,-480.0,0.00022465,3]
[380418902,1755751854253,-812.35,0.00022465,3]
[380418903,1755751854263,-480.0,0.00022465,3]
[380418904,1755751854273,-480.0,0.00022465,3]
[380418905,1755751854282,-1055.38,0.00022465,3]
[380418906,1755751854292,-480.0,0.00022465,3]
[380418907,1755751854302,-480.0,0.00022465,3]
[380418908,1755751854311,-480.0,0.00022465,3]
[380418909,1755751854321,-480.0,0.00022465,3]
[380418910,1755751854331,-480.0,0.00022465,3]
[380418911,1755751854340,-492.27,0.00022465,3]
[380418912,1755751854349,-480.0,0.00022465,3]
[380418913,1755751854359,-2100.58,0.00022465,3]
[380418914,1755751854368,-480.0,0.00022465,3]
[380418915,1755751854378,-480.0,0.00022465,3]
[380418916,1755751854388,-480.0,0.00022465,3]
[380418917,1755751854397,-851.78,0.00022465,3]
[380418918,1755751854407,-480.0,0.00022465,3]
[380418919,1755751854416,-685.91,0.00022465,3]
[380418920,1755751854426,-480.0,0.00022465,3]
[380418921,1755751854436,-874.52,0.00022465,3]
[380418922,1755751854446,-159.707259,0.00022465,7]
[380418923,1755751854455,-480.0,0.00022465,3]
[380418924,1755751854464,-228.612198,0.00022465,7]
[380418925,1755751854475,-151.0,0.00022465,7]
[380418926,1755751854485,-205.932385,0.00022465,7]
[380418927,1755751854494,-480.0,0.00022465,3]
[380418928,1755751854504,-542.23,0.00022465,3]
[380418929,1755751854513,-205.932385,0.00022465,7]